bitfinex/quotes_BTCUSD_20240718
["timestamp","ask_amount","ask_price","bid_price","bid_amount"]
[1721294145976,0.462526,64861.0,64860.0,0.12491702]
[1721294146285,0.15417,64864.0,64863.0,0.00888893]
[1721294146515,0.15417,64864.0,64863.0,0.09138893]
[1721294146516,0.15438174,64864.0,64863.0,0.09138893]
[1721294146719,0.782317,64869.0,64868.0,0.08618893]
[1721294146720,0.782314,64869.0,64868.0,0.08618893]
[1721294146848,0.46247,64869.0,64868.0,0.10918893]
[1721294147255,0.46515488,64869.0,64868.0,0.10918893]
[1721294147454,0.46515488,64869.0,64868.0,0.11978848]
[1721294147853,0.00268488,64869.0,64868.0,0.11978848]
[1721294148080,0.00268488,64869.0,64868.0,0.64766548]
[1721294148405,0.00084,64874.0,64873.0,0.154147]
[1721294148620,0.00084,64874.0,64873.0,0.92212393]
[1721294148849,0.00268436,64887.0,64886.0,0.08668893]
[1721294149046,0.00268436,64887.0,64886.0,0.61373693]
[1721294149332,0.1756,64914.0,64886.0,0.61373693]
[1721294149333,0.462213,64905.0,64904.0,0.00888893]
[1721294149535,0.61659474,64905.0,64904.0,0.00888893]
[1721294149707,0.92473674,64905.0,64904.0,0.023]
[1721294150027,0.92742067,64905.0,64904.0,0.023]
[1721294150158,0.770367,64904.0,64903.0,0.023]
[1721294150353,0.92474874,64904.0,64903.0,0.023]
[1721294150553,0.92474874,64904.0,64902.0,0.03188893]
[1721294150554,0.462228,64903.0,64902.0,0.03188893]
[1721294150750,0.92476174,64903.0,64902.0,0.023]
[1721294150974,0.616312,64902.0,64901.0,0.03188893]
[1721294151173,0.92477174,64902.0,64901.0,0.03188893]
[1721294151458,1.23292774,64902.0,64901.0,0.03188893]
[1721294151655,1.23292774,64902.0,64901.0,0.023]
[1721294151790,1.23292774,64902.0,64900.0,0.03188893]
[1721294151791,0.770402,64901.0,64900.0,0.03188893]
[1721294151994,0.92478374,64901.0,64900.0,0.03188893]
[1721294152249,1.23294474,64901.0,64900.0,0.023]
[1721294152447,1.33294474,64901.0,64900.0,0.023]
[1721294152852,1.33294474,64901.0,64894.0,0.00888893]
[1721294152853,0.154095,64895.0,64894.0,0.00888893]
[1721294153089,0.154095,64895.0,64894.0,0.03188893]
[1721294153090,0.92485674,64895.0,64894.0,0.03188893]
[1721294153273,1.23304674,64895.0,64894.0,0.03348553]
[1721294153399,1.23304674,64895.0,64885.0,0.0832]
[1721294153400,0.154116,64886.0,64885.0,0.0832]
[1721294153611,0.770605,64884.0,64883.0,0.00888893]
[1721294153810,1.23322874,64884.0,64883.0,0.00888893]
[1721294154426,0.154121,64884.0,64883.0,0.00888893]
[1721294154669,0.462363,64884.0,64883.0,0.00888893]
[1721294154815,0.462363,64884.0,64883.0,0.03188893]
[1721294154816,0.770605,64884.0,64883.0,0.03188893]
[1721294156097,0.462363,64884.0,64883.0,0.03188893]
[1721294156267,0.476363,64884.0,64883.0,0.03188893]
[1721294156852,0.462363,64884.0,64883.0,0.03188893]
[1721294157320,0.476363,64884.0,64883.0,0.03188893]
[1721294157645,0.462363,64884.0,64883.0,0.03188893]
[1721294157856,0.168121,64884.0,64883.0,0.03188893]
[1721294158102,0.476363,64884.0,64883.0,0.03188893]
[1721294159327,0.784605,64884.0,64883.0,0.03188893]
[1721294159931,0.476363,64884.0,64883.0,0.03188893]
[1721294160327,0.784605,64884.0,64883.0,0.04239656]
[1721294160531,0.784605,64884.0,64883.0,0.03188893]
[1721294161129,0.476363,64884.0,64883.0,0.03188893]
[1721294161327,0.014,64884.0,64883.0,0.03188893]
[1721294161711,0.014,64884.0,64883.0,0.04236605]
[1721294161915,0.014,64884.0,64883.0,0.18936605]
[1721294162542,0.77116271,64911.0,64906.0,0.00888893]
[1721294162777,0.462199,64907.0,64906.0,0.00888893]
[1721294162975,1.23284674,64907.0,64906.0,0.00888893]
[1721294163133,1.23284674,64907.0,64906.0,0.03188893]
[1721294163536,0.92471374,64907.0,64906.0,0.03188893]
[1721294163859,0.92471374,64907.0,64906.0,0.023]
[1721294164180,0.770342,64906.0,64905.0,0.03188893]
[1721294164380,1.33286074,64906.0,64905.0,0.03188893]
[1721294165146,1.02472374,64906.0,64905.0,0.03188893]
[1721294165754,1.02472374,64906.0,64905.0,0.023]
[1721294165958,1.02472374,64906.0,64905.0,0.03188893]
[1721294166675,1.03872374,64906.0,64905.0,0.03188893]
[1721294168105,1.03872374,64906.0,64905.0,0.023]
[1721294168302,1.34686074,64906.0,64905.0,0.023]
[1721294168682,1.03872374,64906.0,64905.0,0.03188893]
[1721294169154,1.34686074,64906.0,64905.0,0.03188893]
[1721294169341,1.34686074,64906.0,64905.0,0.023]
[1721294169934,1.03872374,64906.0,64905.0,0.03188893]
[1721294170375,1.34686074,64906.0,64905.0,0.03188893]
[1721294170562,1.34686074,64906.0,64905.0,0.023]
[1721294170770,1.03872374,64906.0,64905.0,0.03188893]
[1721294171117,1.04140759,64906.0,64905.0,0.03188893]
[1721294171413,1.04140759,64906.0,64905.0,0.023]
[1721294171829,1.34686074,64906.0,64905.0,0.023]
[1721294172423,1.34686074,64906.0,64905.0,0.03188893]
[1721294172624,1.33286074,64906.0,64905.0,0.03188893]
[1721294172887,1.34686074,64906.0,64905.0,0.023]
[1721294173089,1.34686074,64906.0,64905.0,0.03188893]
[1721294173442,1.33286074,64906.0,64905.0,0.03188893]
[1721294173869,1.34686074,64906.0,64905.0,0.03188893]
[1721294174492,1.03872374,64906.0,64905.0,0.03188893]
[1721294174803,1.34686074,64906.0,64905.0,0.03188893]
[1721294175002,1.03872374,64906.0,64905.0,0.03188893]
[1721294175444,1.34686074,64906.0,64905.0,0.03188893]
[1721294177743,0.014,64906.0,64905.0,0.03188893]
[1721294178238,0.168068,64906.0,64905.0,0.03188893]
[1721294178413,0.014,64906.0,64905.0,0.04227313]
[1721294179856,0.014,64906.0,64905.0,0.64986717]
[1721294179991,0.00836,64915.0,64914.0,0.30523793]
[1721294180198,0.00836,64915.0,64914.0,0.94751654]
[1721294180397,0.00836,64915.0,64914.0,0.95787749]
[1721294180600,0.00836,64915.0,64914.0,1.13347749]
[1721294181365,0.00836,64915.0,64914.0,1.13039688]
[1721294182910,0.01936,64915.0,64914.0,1.13139688]
[1721294185706,0.00836,64915.0,64914.0,0.95479688]
[1721294185904,0.01936,64915.0,64914.0,0.64769788]
[1721294186291,0.154037,64920.0,64919.0,0.00888893]
[1721294186573,0.154037,64920.0,64919.0,0.04220505]
[1721294186880,0.154037,64920.0,64919.0,0.03188893]
[1721294187049,0.154037,64920.0,64919.0,0.04220505]
[1721294187862,0.308065,64922.0,64921.0,0.00888893]
[1721294187863,0.154033,64922.0,64921.0,0.00888893]
[1721294188060,0.154033,64922.0,64921.0,0.03188893]
[1721294188265,0.462094,64922.0,64921.0,0.04220426]
[1721294188819,0.462094,64922.0,64921.0,0.03188893]
[1721294189456,0.002684,64926.0,64923.0,0.00888893]
[1721294189656,0.002684,64926.0,64925.0,0.08918893]
[1721294189856,0.002684,64926.0,64925.0,0.11218893]
[1721294190059,0.002684,64926.0,64925.0,0.12248454]
[1721294190470,0.002684,64926.0,64925.0,0.18728454]
[1721294191242,0.002684,64926.0,64925.0,0.18828454]
[1721294191687,0.772791,64926.0,64925.0,0.04318454]
[1721294191894,0.772791,64926.0,64925.0,0.03288893]
[1721294193202,1.30101574,64926.0,64925.0,0.024]
[1721294193564,1.30101574,64926.0,64925.0,0.03288893]
[1721294194515,0.92717274,64926.0,64925.0,0.03288893]
[1721294196752,0.002684,64926.0,64925.0,0.03288893]
[1721294197199,0.00134073,64926.0,64925.0,0.04317861]
[1721294197736,0.00134073,64926.0,64925.0,0.58524861]
[1721294198176,0.00083,64927.0,64926.0,0.154021]
[1721294198308,0.00083,64927.0,64926.0,0.18590993]
[1721294198513,0.00083,64927.0,64926.0,0.04217822]
[1721294199079,0.00083,64927.0,64926.0,0.19619922]
[1721294199810,0.00083,64927.0,64926.0,0.19719922]
[1721294200246,0.00083,64927.0,64926.0,0.19619922]
[1721294200614,0.00083,64927.0,64926.0,0.04317822]
[1721294201030,0.462887,64927.0,64926.0,0.04317822]
[1721294201459,0.462887,64927.0,64926.0,0.03288893]
[1721294201659,0.462887,64927.0,64926.0,0.04317989]
[1721294207100,0.00083,64927.0,64926.0,0.19720089]
[1721294207328,0.00083,64927.0,64926.0,0.04317989]
[1721294207999,0.00083,64927.0,64926.0,0.19720089]
[1721294208826,0.06952607,64927.0,64926.0,0.19720089]
[1721294209239,0.06952607,64927.0,64926.0,0.04317989]
[1721294209478,0.00083,64927.0,64926.0,0.04317989]
[1721294209642,0.06959042,64927.0,64926.0,0.04317989]
[1721294210923,0.22360942,64927.0,64926.0,0.04317989]
[1721294211719,0.06959042,64927.0,64926.0,0.04317989]
[1721294212436,0.22360942,64927.0,64926.0,0.04317989]
[1721294212641,0.154849,64927.0,64926.0,0.04317989]
[1721294212999,0.22317846,64927.0,64926.0,0.04317989]
[1721294213197,0.53121646,64927.0,64926.0,0.04317989]
[1721294213408,0.06915946,64927.0,64926.0,0.04317989]
[1721294213623,0.00083,64927.0,64926.0,0.03288893]
[1721294213758,0.0689699,64927.0,64926.0,0.04325885]
[1721294215413,0.0930683,64927.0,64926.0,0.04325885]
[1721294215896,0.0249284,64927.0,64926.0,0.04325885]
[1721294216102,0.0936292,64927.0,64926.0,0.04325885]
[1721294218039,0.2476482,64927.0,64926.0,0.04325885]
[1721294218857,0.2476482,64927.0,64926.0,0.03288893]
[1721294219054,0.1789474,64927.0,64926.0,0.03288893]
[1721294219256,0.24748089,64927.0,64926.0,0.03288893]
[1721294219689,0.24748089,64927.0,64926.0,0.04325741]
[1721294220382,0.55551889,64927.0,64926.0,0.04325741]
[1721294220823,0.92495689,64927.0,64926.0,0.04325741]
[1721294221321,0.92495689,64927.0,64926.0,0.024]
[1721294221533,0.92471118,64927.0,64926.0,0.03288893]
[1721294222050,0.92470945,64927.0,64926.0,0.03288893]
[1721294222234,0.86330945,64927.0,64926.0,0.03288893]
[1721294224574,0.7950234,64927.0,64926.0,0.03288893]
[1721294227527,0.1789474,64927.0,64926.0,0.03288893]
[1721294227699,0.4869854,64927.0,64926.0,0.03288893]
[1721294227995,0.4869854,64927.0,64926.0,0.04325948]
[1721294232564,0.9349234,64927.0,64926.0,0.04325948]
[1721294232965,0.9349234,64927.0,64926.0,0.03288893]
[1721294233266,0.9349234,64927.0,64926.0,0.024]
[1721294233489,1.70538114,64927.0,64926.0,0.001]
[1721294233691,1.39734314,64927.0,64926.0,0.001]
[1721294233873,1.31804314,64927.0,64926.0,0.00988893]
[1721294234894,1.31804314,64927.0,64926.0,0.03288893]
[1721294235253,1.31804314,64927.0,64926.0,0.03188893]
[1721294235680,1.33104314,64927.0,64926.0,0.024]
[1721294236211,1.31804314,64927.0,64926.0,0.023]
[1721294236422,0.308051,64925.0,64923.0,0.023]
[1721294237519,0.462078,64924.0,64923.0,0.023]
[1721294237687,0.462078,64924.0,64923.0,0.03188893]
[1721294238056,0.77013,64924.0,64923.0,0.03188893]
[1721294238831,0.77013,64924.0,64923.0,0.03288893]
[1721294239238,0.77013,64924.0,64923.0,0.03188893]
[1721294239672,0.78313,64924.0,64923.0,0.03288893]
[1721294240970,0.87556802,64924.0,64923.0,0.03288893]
[1721294241167,0.94249634,64924.0,64923.0,0.03288893]
[1721294241724,0.94249634,64924.0,64923.0,0.0264032]
[1721294243163,0.94249634,64924.0,64923.0,0.01751427]
[1721294243366,0.87555629,64924.0,64923.0,0.01751427]
[1721294243630,0.94281227,64924.0,64923.0,0.01751427]
[1721294243959,0.94281227,64924.0,64923.0,0.001]
[1721294244367,1.40524601,64924.0,64923.0,0.001]
[1721294244572,1.45871972,64924.0,64923.0,0.001]
[1721294244781,2.02112129,64924.0,64923.0,0.001]
[1721294244980,2.12212544,64924.0,64923.0,0.001]
[1721294245567,2.43017744,64924.0,64923.0,0.001]
[1721294245758,2.43017744,64924.0,64904.0,0.00888893]
[1721294245759,0.154071,64905.0,64904.0,0.00888893]
[1721294246056,0.72900662,64905.0,64904.0,0.01928656]
[1721294246280,0.72900662,64905.0,64904.0,0.00888893]
[1721294246281,1.29909316,64905.0,64904.0,0.00888893]
[1721294246448,1.27905028,64905.0,64904.0,0.00888893]
[1721294246624,1.29910443,64905.0,64904.0,0.00888893]
[1721294247876,0.83658069,64905.0,64904.0,0.03188893]
[1721294248200,0.784355,64905.0,64904.0,0.03188893]
[1721294248580,0.770355,64905.0,64904.0,0.03188893]
[1721294248978,0.784355,64905.0,64904.0,0.03188893]
[1721294249532,0.770355,64905.0,64904.0,0.03188893]
[1721294249717,0.784355,64905.0,64904.0,0.03188893]
[1721294250132,1.092497,64905.0,64904.0,0.03188893]
[1721294250463,0.784355,64905.0,64904.0,0.03188893]
[1721294250919,0.781355,64905.0,64904.0,0.03188893]
[1721294251823,1.089497,64905.0,64904.0,0.03188893]
[1721294252179,0.781355,64905.0,64904.0,0.03188893]
[1721294252727,0.781355,64905.0,64904.0,0.03280193]
[1721294255398,1.089497,64905.0,64904.0,0.03280193]
[1721294255572,0.781355,64905.0,64904.0,0.03280193]
[1721294260226,0.781355,64905.0,64904.0,0.04324794]
[1721294260425,0.781355,64905.0,64904.0,0.03280193]
[1721294260637,0.473213,64905.0,64904.0,0.03280193]
[1721294261072,0.014,64905.0,64904.0,0.19732094]
[1721294261277,0.014,64905.0,64904.0,0.25027493]
[1721294261476,0.014,64905.0,64904.0,0.87704009]
[1721294262324,0.014,64905.0,64904.0,0.56889309]
[1721294263340,0.014,64905.0,64904.0,0.10667309]
[1721294263689,0.014,64905.0,64904.0,0.56889309]
[1721294266372,0.014,64905.0,64904.0,1.43708709]
[1721294266771,0.014,64905.0,64904.0,1.64146883]
[1721294266948,0.014,64905.0,64904.0,1.59146883]
[1721294268289,0.154038,64919.0,64918.0,0.00888893]
[1721294268482,0.154038,64919.0,64918.0,0.03188893]
[1721294268647,0.154038,64919.0,64918.0,0.04232105]
[1721294269627,0.168038,64919.0,64918.0,0.04232105]
[1721294269975,0.014,64919.0,64918.0,0.04232105]
[1721294270180,0.014,64919.0,64918.0,0.58264105]
[1721294270377,0.014,64919.0,64918.0,1.18991212]
[1721294270747,0.014,64919.0,64918.0,1.25311212]
[1721294271039,0.014,64919.0,64918.0,1.26200105]
[1721294271197,0.00084,64932.0,64918.0,1.26200105]
[1721294271198,0.00084,64932.0,64926.0,0.47095293]
[1721294271427,0.154847,64932.0,64926.0,0.58258189]
[1721294272325,0.00583,64927.0,64926.0,0.58258189]
[1721294273715,0.00583,64927.0,64926.0,0.95382489]
[1721294275132,0.00583,64927.0,64926.0,0.94493596]
[1721294275335,0.00583,64927.0,64926.0,0.95382489]
[1721294276735,0.00583,64927.0,64926.0,1.26186789]
[1721294278783,0.00083,64927.0,64926.0,1.26186789]
[1721294280939,0.00083,64927.0,64926.0,1.26386789]
[1721294289428,0.00083,64927.0,64926.0,1.25497896]
[1721294289639,0.00083,64927.0,64926.0,1.46824963]
[1721294289843,0.00083,64927.0,64926.0,1.72629263]
[1721294290246,0.00083,64927.0,64926.0,1.77629263]
[1721294291409,0.00083,64927.0,64926.0,1.72629263]
[1721294291963,0.00083,64927.0,64926.0,1.77629263]
[1721294292763,0.00083,64927.0,64926.0,1.72629263]
[1721294294586,0.00083,64927.0,64926.0,1.41824963]
[1721294295446,0.00083,64927.0,64926.0,0.17533889]
[1721294295837,0.00083,64927.0,64926.0,0.48338189]
[1721294296167,0.00083,64927.0,64926.0,0.48138189]
[1721294297023,0.06453,64927.0,64926.0,0.19633889]
[1721294297577,0.06453,64927.0,64926.0,0.50438189]
[1721294297778,0.06453,64927.0,64926.0,0.19633889]
[1721294298179,0.06753,64927.0,64926.0,0.19633889]
[1721294298628,0.06453,64927.0,64926.0,0.19633889]
[1721294298874,0.06753,64927.0,64926.0,0.19633889]
[1721294299015,0.00383,64927.0,64926.0,0.19633889]
[1721294299228,0.00383,64927.0,64926.0,0.50438189]
[1721294299861,0.00383,64927.0,64926.0,0.95282489]
[1721294302937,0.00383,64927.0,64926.0,0.88822489]
[1721294302938,0.00083,64927.0,64926.0,0.88822489]
[1721294304536,0.00083,64927.0,64926.0,0.50438189]
[1721294306223,0.00383,64927.0,64926.0,0.50438189]
[1721294306459,0.00383,64927.0,64926.0,0.81242489]
[1721294308913,0.00383,64927.0,64926.0,0.81193858]
[1721294309127,0.00383,64927.0,64926.0,0.50389558]
[1721294309653,0.00383,64927.0,64926.0,0.19585258]
[1721294309850,0.914725,64927.0,64926.0,0.01883158]
[1721294310096,0.46207,64925.0,64924.0,0.00888893]
[1721294310474,0.830917,64925.0,64924.0,0.00888893]
[1721294312452,0.830917,64925.0,64924.0,0.03188893]
[1721294313232,0.0608,64925.0,64924.0,0.03188893]
[1721294313616,0.0608,64925.0,64924.0,0.04221305]
[1721294315128,0.223823,64925.0,64924.0,0.04221305]
[1721294319993,0.223823,64925.0,64924.0,0.04312605]
[1721294320833,0.0698,64925.0,64924.0,0.04312605]
[1721294321086,0.009,64925.0,64924.0,0.19715205]
[1721294321591,0.009,64925.0,64924.0,0.04312605]
[1721294322364,0.009,64925.0,64924.0,0.12202605]
[1721294323982,0.009,64925.0,64924.0,0.27605205]
[1721294326271,0.009,64925.0,64924.0,0.34045205]
[1721294326585,0.009,64925.0,64924.0,0.64850405]
[1721294326774,0.009,64925.0,64924.0,0.58410405]
[1721294327129,0.009,64925.0,64924.0,0.89215605]
[1721294334542,0.009,64925.0,64924.0,1.20020805]
[1721294339246,0.009,64925.0,64924.0,0.81325605]
[1721294339735,0.1535,64925.0,64924.0,0.50520405]
[1721294339943,0.1535,64925.0,64924.0,0.02012605]
[1721294340075,0.307523,64925.0,64924.0,0.02012605]
[1721294340306,0.307523,64925.0,64924.0,0.01123712]
[1721294340307,0.61557,64925.0,64924.0,0.01123712]
[1721294340512,0.61557,64925.0,64924.0,0.02012605]
[1721294340712,0.61557,64925.0,64924.0,0.00980193]
[1721294340970,0.923617,64925.0,64924.0,0.00980193]
[1721294341387,0.923617,64925.0,64924.0,0.03280193]
[1721294343067,0.61557,64925.0,64924.0,0.03280193]
[1721294343392,0.307523,64925.0,64924.0,0.03280193]
[1721294343567,0.0752,64925.0,64924.0,0.03280193]
[1721294343741,0.0752,64925.0,64924.0,0.04315413]
[1721294344153,0.0752,64925.0,64924.0,0.19718013]
[1721294344400,0.009,64925.0,64924.0,0.19718013]
[1721294344737,0.009,64925.0,64924.0,0.50523213]
[1721294346971,0.009,64925.0,64924.0,1.12133613]
[1721294347085,0.009,64925.0,64924.0,1.26503613]
[1721294348009,0.00083,64927.0,64926.0,0.770107]
[1721294348142,0.00083,64927.0,64926.0,0.80199593]
[1721294348343,0.00083,64927.0,64926.0,0.81234734]
[1721294349005,0.06153,64927.0,64926.0,0.04224034]
[1721294349185,0.06453,64927.0,64926.0,0.04224034]
[1721294349386,0.06453,64927.0,64926.0,0.19626134]
[1721294349792,0.06453,64927.0,64926.0,0.04224034]
[1721294350885,0.06153,64927.0,64926.0,0.04224034]
[1721294351091,0.06853,64927.0,64926.0,0.04324034]
[1721294351705,0.06153,64927.0,64926.0,0.04224034]
[1721294351909,0.06153,64927.0,64926.0,0.04324034]
[1721294351910,0.06853,64927.0,64926.0,0.04324034]
[1721294355547,0.06853,64927.0,64926.0,0.19726134]
[1721294356070,0.06853,64927.0,64926.0,0.04324034]
[1721294356692,0.222549,64927.0,64926.0,0.04324034]
[1721294357448,1.48400931,64927.0,64926.0,0.01135141]
[1721294357648,1.54761556,64927.0,64926.0,0.01135141]
[1721294357857,1.57195713,64927.0,64926.0,0.001]
[1721294358260,1.87999513,64927.0,64926.0,0.001]
[1721294358476,1.97999513,64927.0,64926.0,0.001]
[1721294358676,0.770117,64925.0,64924.0,0.000913]
[1721294358910,1.46739356,64925.0,64924.0,0.000913]
[1721294359133,1.58287965,64925.0,64924.0,0.000913]
[1721294359288,1.64049668,64925.0,64924.0,0.000913]
[1721294360144,1.52501059,64925.0,64924.0,0.000913]
[1721294360782,1.52405344,64925.0,64924.0,0.000913]
[1721294360982,1.53805344,64925.0,64924.0,0.000913]
[1721294361180,1.63040288,64925.0,64924.0,0.000913]
[1721294362302,1.53805344,64925.0,64924.0,0.000913]
[1721294363002,1.65347286,64925.0,64924.0,0.000913]
[1721294363561,1.57275121,64925.0,64924.0,0.000913]
[1721294364105,1.57274866,64925.0,64924.0,0.000913]
[1721294364324,1.48043641,64925.0,64924.0,0.000913]
[1721294364610,1.57274866,64925.0,64924.0,0.000913]
[1721294365166,1.48043641,64925.0,64924.0,0.000913]
[1721294366821,1.51387308,64925.0,64924.0,0.000913]
[1721294367041,1.450982,64925.0,64924.0,0.000913]
[1721294367255,1.58390094,64925.0,64924.0,0.000913]
[1721294368871,1.55314774,64925.0,64924.0,0.000913]
[1721294369341,1.48395313,64925.0,64924.0,0.000913]
[1721294369870,1.48395313,64925.0,64924.0,0.00980193]
[1721294370087,0.5424778,64925.0,64924.0,0.03280193]
[1721294370234,0.17070647,64925.0,64924.0,0.03280193]
[1721294370881,0.17070647,64925.0,64924.0,0.04260653]
[1721294371085,0.00268347,64925.0,64924.0,0.50468453]
[1721294371490,0.00083,64927.0,64926.0,0.16290993]
[1721294371722,0.00083,64927.0,64926.0,0.64213304]
[1721294371920,0.00083,64927.0,64926.0,0.95689974]
[1721294373861,0.00083,64927.0,64926.0,1.26494274]
[1721294374072,0.00883,64927.0,64926.0,1.41932448]
[1721294374289,0.00883,64927.0,64926.0,1.46932448]
[1721294374495,0.00883,64927.0,64926.0,1.72736748]
[1721294375231,0.00083,64927.0,64926.0,1.72736748]
[1721294376081,0.00083,64927.0,64926.0,1.26494274]
[1721294376306,0.00083,64927.0,64926.0,0.27711374]
[1721294376480,0.00183,64927.0,64926.0,0.27711374]
[1721294376666,0.00183,64927.0,64926.0,0.89319974]
[1721294377441,0.00083,64927.0,64926.0,0.89319974]
[1721294377623,0.00383,64927.0,64926.0,0.89319974]
[1721294378745,0.00383,64927.0,64926.0,1.20124274]
[1721294378945,0.00383,64927.0,64926.0,1.41612448]
[1721294379190,0.00383,64927.0,64926.0,1.26174274]
[1721294379588,0.00083,64927.0,64926.0,1.26174274]
[1721294379768,0.00283,64927.0,64926.0,1.26174274]
[1721294380368,0.00083,64927.0,64926.0,1.26174274]
[1721294380583,0.00183,64927.0,64926.0,1.26174274]
[1721294382895,0.00016648,64927.0,64926.0,1.26174274]
[1721294384019,0.00099648,64927.0,64926.0,1.26174274]
[1721294386248,0.00099648,64927.0,64926.0,0.89319974]
[1721294386659,0.00099648,64927.0,64926.0,0.01869274]
[1721294387500,0.00083,64927.0,64926.0,0.01869274]
[1721294387877,0.00083,64927.0,64926.0,0.04169274]
[1721294387878,0.06413,64927.0,64926.0,0.04169274]
[1721294388606,0.06113,64927.0,64926.0,0.04169274]
[1721294388806,0.00083,64927.0,64926.0,0.04169274]
[1721294389659,0.00083,64927.0,64926.0,0.50375674]
[1721294389862,0.00483,64927.0,64926.0,0.89409974]
[1721294390074,0.00483,64927.0,64926.0,0.95749974]
[1721294390291,0.00483,64927.0,64926.0,1.26554274]
[1721294391130,0.00083,64927.0,64926.0,1.26554274]
[1721294391615,0.00183,64927.0,64926.0,1.26554274]
[1721294392258,0.00183,64927.0,64926.0,0.01869274]
[1721294392462,0.00183,64927.0,64926.0,0.48075674]
[1721294393479,0.00183,64927.0,64926.0,0.50375674]
[1721294393686,0.00183,64927.0,64926.0,0.19571374]
[1721294395618,0.00183,64927.0,64926.0,0.50375674]
[1721294396588,0.00183,64927.0,64926.0,0.89459974]
[1721294401689,0.00183,64927.0,64926.0,0.04169274]
[1721294401870,0.06503,64927.0,64926.0,0.04169274]
[1721294402481,0.219049,64927.0,64926.0,0.04169274]
[1721294403262,0.06503,64927.0,64926.0,0.04169274]
[1721294403467,0.00183,64927.0,64926.0,0.19571374]
[1721294403671,0.00183,64927.0,64926.0,0.50375674]
[1721294403874,0.00183,64927.0,64926.0,0.87179974]
[1721294404076,0.00183,64927.0,64926.0,0.94929974]
[1721294404888,0.00183,64927.0,64926.0,1.41172448]
[1721294405091,0.00183,64927.0,64926.0,1.53962356]
[1721294405937,0.00183,64927.0,64926.0,1.58962356]
[1721294407271,0.00183,64927.0,64926.0,1.89766353]
[1721294410192,0.00183,64927.0,64926.0,1.76976748]
[1721294410395,0.00183,64927.0,64926.0,2.02553506]
[1721294410596,0.00183,64927.0,64926.0,1.89765127]
[1721294413348,0.00183,64927.0,64926.0,1.76976748]
[1721294413547,0.00183,64927.0,64926.0,1.8976509]
[1721294414303,0.00183,64927.0,64926.0,1.89765089]
[1721294415108,0.00183,64927.0,64926.0,2.35160218]
[1721294415312,0.00183,64927.0,64926.0,2.30569389]
[1721294415722,0.00083,64927.0,64926.0,2.30569389]
[1721294416189,0.00183,64927.0,64926.0,2.37555633]
[1721294416354,0.00183,64927.0,64926.0,2.7170175]
[1721294416557,0.00083,64927.0,64926.0,2.17781048]
[1721294416779,0.00083,64927.0,64926.0,2.71600806]
[1721294416942,0.00083,64927.0,64926.0,1.99764083]
[1721294417165,0.00083,64927.0,64926.0,1.99764261]
[1721294417346,0.00083,64927.0,64926.0,2.04355632]
[1721294417533,0.00183,64927.0,64926.0,2.04455693]
[1721294419748,0.00183,64927.0,64926.0,1.99455693]
[1721294419925,0.00183,64927.0,64926.0,1.22571787]
[1721294420124,0.00183,64927.0,64926.0,1.09784274]
[1721294420385,0.06743,64927.0,64926.0,0.17371374]
[1721294420592,0.06743,64927.0,64926.0,0.01969274]
[1721294420593,0.221449,64927.0,64926.0,0.01969274]
[1721294420797,0.303749,64927.0,64926.0,0.01869274]
[1721294420945,0.304749,64927.0,64926.0,0.01969274]
[1721294421144,0.304749,64927.0,64926.0,0.00988893]
[1721294421311,0.15073,64927.0,64926.0,0.00988893]
[1721294421516,0.15073,64927.0,64926.0,0.01904971]
[1721294422138,0.15073,64927.0,64926.0,0.17307071]
[1721294422496,0.14973,64927.0,64926.0,0.19507071]
[1721294422711,0.15973,64927.0,64926.0,0.19507071]
[1721294423084,0.14973,64927.0,64926.0,0.19507071]
[1721294423537,0.15673,64927.0,64926.0,0.19507071]
[1721294423919,0.15673,64927.0,64926.0,0.04104971]
[1721294425111,0.15673,64927.0,64926.0,0.19507071]
[1721294427393,0.07343,64927.0,64926.0,0.19507071]
[1721294429074,0.07343,64927.0,64926.0,0.50311371]
[1721294433459,0.00783,64927.0,64926.0,0.81115671]
[1721294435012,0.00783,64927.0,64926.0,0.50311371]
[1721294435979,0.08643,64927.0,64926.0,0.50311371]
[1721294436753,0.15213,64927.0,64926.0,0.50311371]
[1721294439075,0.15213,64927.0,64926.0,0.49395293]
[1721294439495,0.15213,64927.0,64926.0,0.50333549]
[1721294439716,0.15213,64927.0,64926.0,0.04127149]
[1721294441291,0.306149,64927.0,64926.0,0.04127149]
[1721294442284,0.07353,64927.0,64926.0,0.04127149]
[1721294444787,0.07353,64927.0,64926.0,0.19529249]
[1721294445134,0.00783,64927.0,64926.0,0.19529249]
[1721294448271,0.00783,64927.0,64926.0,0.50333549]
[1721294448691,0.00783,64927.0,64926.0,0.19529249]
[1721294450767,0.00783,64927.0,64926.0,0.50333549]
[1721294452287,0.00783,64927.0,64926.0,0.50424849]
[1721294455460,0.00783,64927.0,64926.0,0.19620549]
[1721294455788,0.08853,64927.0,64926.0,0.19620549]
[1721294456112,0.14933,64927.0,64926.0,0.04218449]
[1721294456328,0.06863,64927.0,64926.0,0.04218449]
[1721294456691,0.06863,64927.0,64926.0,0.19620549]
[1721294457348,0.06863,64927.0,64926.0,0.04218449]
[1721294460550,0.222649,64927.0,64926.0,0.04218449]
[1721294460901,0.06863,64927.0,64926.0,0.04218449]
[1721294462439,0.06863,64927.0,64926.0,0.50424849]
[1721294462440,0.00783,64927.0,64926.0,0.50424849]
[1721294466665,0.00833,64927.0,64926.0,0.50424849]
[1721294467766,0.00833,64927.0,64926.0,0.19620549]
[1721294469045,0.00833,64927.0,64926.0,0.50424849]
[1721294470585,0.00833,64927.0,64926.0,0.81229149]
[1721294470784,0.00833,64927.0,64926.0,0.89129149]
[1721294473369,0.00833,64927.0,64926.0,0.81229149]
[1721294473594,0.15753,64927.0,64926.0,0.04218449]
[1721294474021,0.15753,64927.0,64926.0,0.03280193]
[1721294474275,0.15753,64927.0,64926.0,0.04226921]
[1721294474808,0.15753,64927.0,64926.0,0.19629021]
[1721294475014,0.15753,64927.0,64926.0,0.04226921]
[1721294475015,0.311549,64927.0,64926.0,0.04226921]
[1721294475211,0.619587,64927.0,64926.0,0.03280193]
[1721294475454,0.619587,64927.0,64926.0,0.04226921]
[1721294475974,0.311549,64927.0,64926.0,0.03280193]
[1721294476575,0.619587,64927.0,64926.0,0.03280193]
[1721294476788,1.43628736,64927.0,64926.0,0.023913]
[1721294476991,1.43628736,64927.0,64926.0,0.000913]